[Event "*** SCC Grand Prix: Titled Tuesday Blitz"]
[Site "Chess.com"]
[Date "2020.07.21"]
[Round "4"]
[White "albano87"]
[Black "romulocardoso"]
[Result "1-0"]
[WhiteElo "2396"]
[BlackElo "2131"]
[TimeControl "180+1"]
[EndTime "10:37:45 PDT"]
[Termination "albano87 won by resignation"]

1. e4 {[%clk 0:02:51.9]} 1... c5 {[%clk 0:02:59.5]} 2. Nf3 {[%clk 0:02:51.2]}
2... d6 {[%clk 0:03:00.4]} 3. d4 {[%clk 0:02:49]} 3... cxd4 {[%clk 0:03:01.3]}
4. Qxd4 {[%clk 0:02:48.9]} 4... Nf6 {[%clk 0:03:01.9]} 5. Nc3 {[%clk 0:02:48.7]}
5... Nc6 {[%clk 0:03:02.5]} 6. Bb5 {[%clk 0:02:49.1]} 6... Bd7 {[%clk 0:03:03]}
7. Bxc6 {[%clk 0:02:49.5]} 7... Bxc6 {[%clk 0:03:03.9]} 8. Bg5 {[%clk 0:02:50]}
8... e5 {[%clk 0:03:02.9]} 9. Qd3 {[%clk 0:02:50.3]} 9... Be7 {[%clk 0:03:03.2]}
10. O-O-O {[%clk 0:02:48.1]} 10... Rc8 {[%clk 0:02:15.2]} 11. Bxf6 {[%clk
0:02:43.4]} 11... gxf6 {[%clk 0:02:16.1]} 12. Nh4 {[%clk 0:02:43.1]} 12... Bd7
{[%clk 0:02:14.2]} 13. Nd5 {[%clk 0:02:42.8]} 13... Rc6 {[%clk 0:02:11.8]} 14.
Kb1 {[%clk 0:02:42.6]} 14... Be6 {[%clk 0:02:11]} 15. f4 {[%clk 0:02:41.3]}
15... exf4 {[%clk 0:02:05.1]} 16. Rhf1 {[%clk 0:02:36]} 16... Qa5 {[%clk
0:02:03.6]} 17. Rxf4 {[%clk 0:02:33.9]} 17... Ra6 {[%clk 0:01:51.4]} 18. a3
{[%clk 0:02:32.7]} 18... Bxd5 {[%clk 0:01:46.7]} 19. exd5 {[%clk 0:02:31.5]}
19... Kd7 {[%clk 0:01:31.8]} 20. Qf5+ {[%clk 0:02:20.8]} 20... Kc7 {[%clk
0:01:30.4]} 21. Rc4+ {[%clk 0:02:20.1]} 21... Kb8 {[%clk 0:01:29.2]} 22. Qd7
{[%clk 0:02:20.6]} 22... Qd8 {[%clk 0:01:27.8]} 23. Qf5 {[%clk 0:02:09.1]} 23...
b5 {[%clk 0:01:24.4]} 24. Rc6 {[%clk 0:02:05.1]} 24... Rxc6 {[%clk 0:01:24.3]}
25. dxc6 {[%clk 0:02:05.3]} 25... Qc8 {[%clk 0:01:25]} 26. Qxb5+ {[%clk
0:02:05.2]} 26... Ka8 {[%clk 0:01:24.2]} 27. Nf5 {[%clk 0:02:05.6]} 27... Re8
{[%clk 0:01:15.4]} 28. Rxd6 {[%clk 0:02:04.5]} 28... Bxd6 {[%clk 0:01:14.4]} 29.
Nxd6 {[%clk 0:02:05.1]} 29... Re1+ {[%clk 0:01:15]} 30. Ka2 {[%clk 0:02:05.6]}
30... Qe6+ {[%clk 0:01:15.6]} 31. c4 {[%clk 0:02:05.8]} 31... Qe7 {[%clk
0:01:10.7]} 32. Qa5 {[%clk 0:01:55.6]} 32... Qxd6 {[%clk 0:01:00.6]} 33. Qxe1
{[%clk 0:01:51]} 33... Qxc6 {[%clk 0:01:01.1]} 34. Qb4 {[%clk 0:01:48.4]} 34...
Qxg2 {[%clk 0:01:00.1]} 35. Qf8+ {[%clk 0:01:45.7]} 35... Kb7 {[%clk 0:01:00.6]}
36. Qxf7+ {[%clk 0:01:45.4]} 36... Kc8 {[%clk 0:01:00.9]} 37. Qxa7 {[%clk
0:01:42.6]} 37... Qxh2 {[%clk 0:01:00.4]} 38. Qe7 {[%clk 0:01:36.3]} 38... Qh4
{[%clk 0:00:52.8]} 39. Qe6+ {[%clk 0:01:35.5]} 39... Kc7 {[%clk 0:00:51.8]} 40.
a4 {[%clk 0:01:34.5]} 40... f5 {[%clk 0:00:50.9]} 41. a5 {[%clk 0:01:34.7]}
41... f4 {[%clk 0:00:51.2]} 42. Qb6+ {[%clk 0:01:33.3]} 42... Kd7 {[%clk
0:00:51]} 43. Qd4+ {[%clk 0:01:28.8]} 43... Kc6 {[%clk 0:00:46.6]} 44. a6 {[%clk
0:01:27.6]} 44... Qg5 {[%clk 0:00:32]} 45. Qd5+ {[%clk 0:01:19.6]} 45... Qxd5
{[%clk 0:00:31.8]} 46. cxd5+ {[%clk 0:01:20.5]} 46... Kb6 {[%clk 0:00:32.7]} 47.
d6 {[%clk 0:01:20.9]} 47... f3 {[%clk 0:00:33.3]} 48. d7 {[%clk 0:01:20.6]}
48... Kc7 {[%clk 0:00:33.8]} 49. a7 {[%clk 0:01:20.7]} 49... f2 {[%clk
0:00:33.9]} 50. d8=Q+ {[%clk 0:01:21.3]} 50... Kxd8 {[%clk 0:00:33.6]} 51. a8=Q+
{[%clk 0:01:21.7]} 51... Kc7 {[%clk 0:00:34.5]} 1-0

[Event "*** SCC Grand Prix: Titled Tuesday Blitz"]
[Site "Chess.com"]
[Date "2020.07.21"]
[Round "4"]
[White "Ramil_Faizrakhmanov"]
[Black "sergeikim"]
[Result "1-0"]
[WhiteElo "2788"]
[BlackElo "2454"]
[TimeControl "180+1"]
[EndTime "10:37:48 PDT"]
[Termination "Ramil_Faizrakhmanov won by resignation"]

1. d4 {[%clk 0:03:00.7]} 1... Nf6 {[%clk 0:02:59.4]} 2. c4 {[%clk 0:03:01.2]}
2... g6 {[%clk 0:02:59.6]} 3. Nc3 {[%clk 0:03:00.9]} 3... Bg7 {[%clk 0:02:59.8]}
4. e4 {[%clk 0:03:01.1]} 4... d6 {[%clk 0:03:00]} 5. Nf3 {[%clk 0:03:01.6]} 5...
O-O {[%clk 0:03:00.1]} 6. h3 {[%clk 0:03:02.3]} 6... e5 {[%clk 0:03:00.1]} 7. d5
{[%clk 0:03:03]} 7... a5 {[%clk 0:02:59.9]} 8. Be3 {[%clk 0:03:03.3]} 8... Na6
{[%clk 0:02:59.8]} 9. g4 {[%clk 0:03:04]} 9... Nc5 {[%clk 0:02:59.6]} 10. Nd2
{[%clk 0:03:04.2]} 10... Bd7 {[%clk 0:02:59.5]} 11. Be2 {[%clk 0:03:04.9]} 11...
Rc8 {[%clk 0:02:59.3]} 12. h4 {[%clk 0:03:05.5]} 12... c6 {[%clk 0:02:59]} 13.
h5 {[%clk 0:02:56.2]} 13... Ne8 {[%clk 0:02:58.6]} 14. a4 {[%clk 0:02:55.9]}
14... Nc7 {[%clk 0:02:56.8]} 15. Nb3 {[%clk 0:02:53.7]} 15... N7a6 {[%clk
0:02:44.1]} 16. Nxc5 {[%clk 0:02:43.8]} 16... Nxc5 {[%clk 0:02:42.9]} 17. g5
{[%clk 0:02:43.8]} 17... Qb6 {[%clk 0:02:31.3]} 18. Qc2 {[%clk 0:02:36.1]} 18...
Qb4 {[%clk 0:02:26.9]} 19. O-O-O {[%clk 0:02:18.3]} 19... Nb3+ {[%clk
0:02:23.2]} 20. Kb1 {[%clk 0:02:18.1]} 20... Nd4 {[%clk 0:02:22.8]} 21. Qd2
{[%clk 0:01:51.2]} 21... c5 {[%clk 0:02:08.2]} 22. Nb5 {[%clk 0:01:42.2]} 22...
Qxa4 {[%clk 0:02:01.4]} 23. Nxd6 {[%clk 0:01:32.2]} 23... Rb8 {[%clk 0:01:32.2]}
24. Bd3 {[%clk 0:01:18.8]} 24... Bg4 {[%clk 0:01:18.4]} 25. Bxd4 {[%clk
0:01:17.2]} 25... Bxd1 {[%clk 0:01:10.6]} 26. Bxc5 {[%clk 0:01:09.5]} 26... Bb3
{[%clk 0:01:07.9]} 27. Ba3 {[%clk 0:01:08.7]} 27... Qd7 {[%clk 0:00:56.3]} 28.
Nb5 {[%clk 0:01:01.1]} 28... Rfc8 {[%clk 0:00:50.1]} 29. c5 {[%clk 0:00:57.6]}
29... Bf8 {[%clk 0:00:43.5]} 30. hxg6 {[%clk 0:00:55.1]} 30... hxg6 {[%clk
0:00:40.8]} 31. f3 {[%clk 0:00:47.2]} 31... Ba4 {[%clk 0:00:24.6]} 32. Qh2
{[%clk 0:00:45.8]} 32... Bg7 {[%clk 0:00:23.5]} 33. Qh7+ {[%clk 0:00:44.4]} 1-0

[Event "*** SCC Grand Prix: Titled Tuesday Blitz"]
[Site "Chess.com"]
[Date "2020.07.21"]
[Round "4"]
[White "praveenb2002"]
[Black "ErikRonka"]
[Result "1-0"]
[WhiteElo "2757"]
[BlackElo "2375"]
[TimeControl "180+1"]
[EndTime "10:37:49 PDT"]
[Termination "praveenb2002 won on time"]

1. e4 {[%clk 0:03:00.9]} 1... c6 {[%clk 0:02:57.8]} 2. d4 {[%clk 0:02:59.6]}
2... d5 {[%clk 0:02:58.7]} 3. exd5 {[%clk 0:02:56.2]} 3... cxd5 {[%clk
0:02:58.6]} 4. c4 {[%clk 0:02:56.2]} 4... Nf6 {[%clk 0:02:58.6]} 5. Nc3 {[%clk
0:02:54.2]} 5... g6 {[%clk 0:02:58.8]} 6. Qb3 {[%clk 0:02:48.3]} 6... Bg7 {[%clk
0:02:58.5]} 7. cxd5 {[%clk 0:02:48.5]} 7... O-O {[%clk 0:02:58.3]} 8. Be2 {[%clk
0:02:48.1]} 8... a5 {[%clk 0:02:56.7]} 9. Bf3 {[%clk 0:02:46.5]} 9... Na6 {[%clk
0:02:55.6]} 10. a3 {[%clk 0:02:46.9]} 10... b5 {[%clk 0:02:54.8]} 11. Nxb5
{[%clk 0:02:38.4]} 11... a4 {[%clk 0:02:43.6]} 12. Qxa4 {[%clk 0:02:29.2]} 12...
Nc7 {[%clk 0:02:09.1]} 13. Qc4 {[%clk 0:02:24.2]} 13... Nxb5 {[%clk 0:01:34.8]}
14. Qxb5 {[%clk 0:02:25.1]} 14... Ba6 {[%clk 0:01:33.5]} 15. Qb3 {[%clk
0:02:21]} 15... Rb8 {[%clk 0:01:25.3]} 16. Qa4 {[%clk 0:02:17.9]} 16... Bb5
{[%clk 0:01:18.2]} 17. Qd1 {[%clk 0:02:16.8]} 17... Qa5+ {[%clk 0:00:44.1]} 18.
Bd2 {[%clk 0:02:13.6]} 18... Qa6 {[%clk 0:00:44]} 19. Ne2 {[%clk 0:02:07.8]}
19... Ba4 {[%clk 0:00:42.2]} 20. Qb1 {[%clk 0:02:04.3]} 20... Rfc8 {[%clk
0:00:38.4]} 21. Bc3 {[%clk 0:01:53.1]} 21... Bb5 {[%clk 0:00:28.5]} 22. Qd1
{[%clk 0:01:52.3]} 22... Ba4 {[%clk 0:00:28.1]} 23. Qd2 {[%clk 0:01:52.4]} 23...
Qb5 {[%clk 0:00:27]} 24. O-O {[%clk 0:01:45]} 24... Nxd5 {[%clk 0:00:27]} 25.
Rfe1 {[%clk 0:01:37.6]} 25... Nxc3 {[%clk 0:00:25.7]} 26. Nxc3 {[%clk
0:01:38.1]} 26... Qa5 {[%clk 0:00:25.5]} 27. b4 {[%clk 0:01:31]} 27... Qa7
{[%clk 0:00:25.6]} 28. Nxa4 {[%clk 0:01:29]} 28... Qxa4 {[%clk 0:00:26.5]} 29.
Rxe7 {[%clk 0:01:27.4]} 29... Rd8 {[%clk 0:00:26.5]} 30. Re4 {[%clk 0:01:19.1]}
30... Qd7 {[%clk 0:00:22.7]} 31. g3 {[%clk 0:01:11.8]} 31... Bxd4 {[%clk
0:00:20.6]} 32. Rd1 {[%clk 0:01:11.8]} 32... Bxf2+ {[%clk 0:00:12.8]} 33. Qxf2
{[%clk 0:01:11.6]} 33... Qf5 {[%clk 0:00:09.7]} 34. Red4 {[%clk 0:01:07.3]}
34... Re8 {[%clk 0:00:07.7]} 35. Bd5 {[%clk 0:01:05.6]} 35... Qd7 {[%clk
0:00:03.3]} 36. Rf4 {[%clk 0:00:59.3]} 1-0

[Event "*** SCC Grand Prix: Titled Tuesday Blitz"]
[Site "Chess.com"]
[Date "2020.07.21"]
[Round "4"]
[White "UKR_Master"]
[Black "Harry_Rakkel"]
[Result "0-1"]
[WhiteElo "2329"]
[BlackElo "2545"]
[TimeControl "180+1"]
[EndTime "10:37:52 PDT"]
[Termination "Harry_Rakkel won by resignation"]

1. e4 {[%clk 0:03:00.9]} 1... c5 {[%clk 0:02:59.1]} 2. Nf3 {[%clk 0:03:00.2]}
2... e6 {[%clk 0:02:57.8]} 3. c3 {[%clk 0:03:00.5]} 3... Nf6 {[%clk 0:02:56.2]}
4. e5 {[%clk 0:03:00.8]} 4... Nd5 {[%clk 0:02:55.8]} 5. d4 {[%clk 0:03:01.5]}
5... cxd4 {[%clk 0:02:55.5]} 6. cxd4 {[%clk 0:03:02.4]} 6... Nc6 {[%clk
0:02:54]} 7. Bd3 {[%clk 0:03:01.4]} 7... d6 {[%clk 0:02:51.7]} 8. a3 {[%clk
0:02:52.4]} 8... dxe5 {[%clk 0:02:49.8]} 9. dxe5 {[%clk 0:02:52.7]} 9... Be7
{[%clk 0:02:38.3]} 10. O-O {[%clk 0:02:51.9]} 10... O-O {[%clk 0:02:37.6]} 11.
Qe2 {[%clk 0:02:51.3]} 11... Bd7 {[%clk 0:02:33.4]} 12. Rd1 {[%clk 0:02:50.7]}
12... Rc8 {[%clk 0:02:30.5]} 13. h4 {[%clk 0:02:43.7]} 13... Qb6 {[%clk
0:02:17.9]} 14. Qe4 {[%clk 0:02:36.5]} 14... g6 {[%clk 0:02:17]} 15. h5 {[%clk
0:02:36.1]} 15... Rfd8 {[%clk 0:02:11.4]} 16. Bg5 {[%clk 0:02:22.1]} 16... Qxb2
{[%clk 0:02:01.7]} 17. Nbd2 {[%clk 0:02:21.4]} 17... Nc3 {[%clk 0:01:51.1]} 18.
Qh4 {[%clk 0:02:19.3]} 18... Nxd1 {[%clk 0:01:50.6]} 19. Rxd1 {[%clk 0:02:14.7]}
19... Qxa3 {[%clk 0:01:38.3]} 20. hxg6 {[%clk 0:02:04.5]} 20... fxg6 {[%clk
0:01:35.1]} 21. Bf6 {[%clk 0:01:57.9]} 21... Qxd3 {[%clk 0:01:12.3]} 22. Bxe7
{[%clk 0:01:12.1]} 22... Nxe7 {[%clk 0:01:09]} 23. Qxe7 {[%clk 0:01:13]} 23...
Re8 {[%clk 0:01:05.3]} 24. Qh4 {[%clk 0:01:12]} 24... Bc6 {[%clk 0:00:51.3]} 25.
Re1 {[%clk 0:00:58.8]} 25... Rc7 {[%clk 0:00:45.4]} 26. Re3 {[%clk 0:00:57.2]}
26... Qd8 {[%clk 0:00:42.4]} 27. Qg3 {[%clk 0:00:54.5]} 27... a5 {[%clk
0:00:34.6]} 28. Kh2 {[%clk 0:00:29.7]} 28... Rf8 {[%clk 0:00:31.2]} 29. Re4
{[%clk 0:00:24.2]} 29... Bxe4 {[%clk 0:00:25.7]} 30. Nxe4 {[%clk 0:00:25.1]}
30... Rcf7 {[%clk 0:00:25.5]} 31. Nf6+ {[%clk 0:00:25.1]} 31... Rxf6 {[%clk
0:00:25.1]} 32. exf6 {[%clk 0:00:26]} 32... Qxf6 {[%clk 0:00:25]} 33. Qc7 {[%clk
0:00:23.8]} 33... Qf4+ {[%clk 0:00:24.7]} 0-1

[Event "*** SCC Grand Prix: Titled Tuesday Blitz"]
[Site "Chess.com"]
[Date "2020.07.21"]
[Round "4"]
[White "queen_iryna"]
[Black "kleopl"]
[Result "1-0"]
[WhiteElo "2281"]
[BlackElo "2417"]
[TimeControl "180+1"]
[EndTime "10:37:54 PDT"]
[Termination "queen_iryna won by resignation"]

1. d4 {[%clk 0:03:00.9]} 1... Nf6 {[%clk 0:02:57.2]} 2. Nc3 {[%clk 0:03:01.4]}
2... d5 {[%clk 0:02:55.8]} 3. Bf4 {[%clk 0:03:01.1]} 3... c6 {[%clk 0:02:54.9]}
4. e3 {[%clk 0:02:54.8]} 4... Bf5 {[%clk 0:02:53.2]} 5. Nf3 {[%clk 0:02:54.6]}
5... e6 {[%clk 0:02:52.2]} 6. Ne5 {[%clk 0:02:54.6]} 6... Nbd7 {[%clk
0:02:44.9]} 7. g4 {[%clk 0:02:53.3]} 7... Nxe5 {[%clk 0:02:16.2]} 8. gxf5 {[%clk
0:02:52.5]} 8... Ned7 {[%clk 0:02:15.4]} 9. fxe6 {[%clk 0:02:52.3]} 9... fxe6
{[%clk 0:02:16.3]} 10. Bh3 {[%clk 0:02:47.8]} 10... Qe7 {[%clk 0:02:13.7]} 11.
Qf3 {[%clk 0:02:42.8]} 11... e5 {[%clk 0:01:58]} 12. Bxd7+ {[%clk 0:02:36.6]}
12... Nxd7 {[%clk 0:01:53.4]} 13. dxe5 {[%clk 0:02:28.3]} 13... Nxe5 {[%clk
0:01:53.8]} 14. Qh5+ {[%clk 0:02:23]} 14... Nf7 {[%clk 0:01:51.1]} 15. O-O-O
{[%clk 0:02:19]} 15... g6 {[%clk 0:01:48.6]} 16. Qh3 {[%clk 0:02:13.6]} 16...
Bg7 {[%clk 0:01:48.5]} 17. e4 {[%clk 0:01:59.9]} 17... d4 {[%clk 0:01:32.7]} 18.
Ne2 {[%clk 0:01:52.9]} 18... Qxe4 {[%clk 0:01:26.9]} 19. Rhe1 {[%clk 0:01:50.1]}
19... O-O {[%clk 0:01:24.7]} 20. Bd2 {[%clk 0:01:43.5]} 20... Rae8 {[%clk
0:01:11.4]} 21. Nf4 {[%clk 0:01:29.4]} 21... Qf5 {[%clk 0:01:06.9]} 22. Qxf5
{[%clk 0:01:28.6]} 22... gxf5 {[%clk 0:01:07.8]} 23. Rg1 {[%clk 0:01:28.7]}
23... Ne5 {[%clk 0:01:00.1]} 24. Nh5 {[%clk 0:01:27.3]} 24... Rf7 {[%clk
0:00:51.2]} 25. Bh6 {[%clk 0:01:26.8]} 25... Ng6 {[%clk 0:00:30]} 26. Bxg7
{[%clk 0:01:19]} 26... Rxg7 {[%clk 0:00:29.7]} 27. Nxg7 {[%clk 0:01:16.1]} 27...
Kxg7 {[%clk 0:00:30.6]} 28. Rxd4 {[%clk 0:01:16.3]} 28... Re7 {[%clk 0:00:26.3]}
29. Rgd1 {[%clk 0:01:13.3]} 29... Ne5 {[%clk 0:00:23]} 30. f4 {[%clk 0:01:04.3]}
30... Ng6 {[%clk 0:00:22.9]} 31. Rd7 {[%clk 0:01:04]} 31... Kf6 {[%clk
0:00:23.1]} 32. Rxe7 {[%clk 0:01:03]} 32... Kxe7 {[%clk 0:00:24]} 33. Rd4 {[%clk
0:00:57.8]} 33... Ke6 {[%clk 0:00:19.6]} 34. Kd2 {[%clk 0:00:56.4]} 34... c5
{[%clk 0:00:19.6]} 35. Ra4 {[%clk 0:00:55.9]} 35... a6 {[%clk 0:00:19.3]} 36.
Ke3 {[%clk 0:00:55.6]} 36... Kd5 {[%clk 0:00:18.7]} 37. Ra3 {[%clk 0:00:54.7]}
37... c4 {[%clk 0:00:11.2]} 38. Ra5+ {[%clk 0:00:54.6]} 38... Kc6 {[%clk
0:00:11.2]} 39. Rxf5 {[%clk 0:00:53.9]} 1-0

[Event "*** SCC Grand Prix: Titled Tuesday Blitz"]
[Site "Chess.com"]
[Date "2020.07.21"]
[Round "4"]
[White "sergivila"]
[Black "Sashadav97"]
[Result "0-1"]
[WhiteElo "2385"]
[BlackElo "2604"]
[TimeControl "180+1"]
[EndTime "10:37:55 PDT"]
[Termination "Sashadav97 won by resignation"]

1. e4 {[%clk 0:03:00.9]} 1... c5 {[%clk 0:03:00]} 2. Nf3 {[%clk 0:03:00.6]} 2...
Nc6 {[%clk 0:02:59.7]} 3. Bb5 {[%clk 0:03:00.4]} 3... g6 {[%clk 0:02:59.8]} 4.
Bxc6 {[%clk 0:03:00.9]} 4... dxc6 {[%clk 0:03:00.7]} 5. d3 {[%clk 0:03:00.7]}
5... Bg7 {[%clk 0:03:00.8]} 6. h3 {[%clk 0:03:01.3]} 6... e5 {[%clk 0:02:58]} 7.
Nc3 {[%clk 0:02:58.6]} 7... Ne7 {[%clk 0:02:56.4]} 8. Be3 {[%clk 0:02:57.1]}
8... b6 {[%clk 0:02:56.5]} 9. Qd2 {[%clk 0:02:54.8]} 9... h6 {[%clk 0:02:56.4]}
10. a3 {[%clk 0:02:46.5]} 10... f5 {[%clk 0:02:55.6]} 11. exf5 {[%clk
0:02:43.6]} 11... gxf5 {[%clk 0:02:56.5]} 12. Qe2 {[%clk 0:02:43.7]} 12... Kf8
{[%clk 0:02:55.7]} 13. O-O {[%clk 0:02:37.9]} 13... Nd5 {[%clk 0:02:49.1]} 14.
Bd2 {[%clk 0:02:33.8]} 14... Qd6 {[%clk 0:02:28.5]} 15. Rae1 {[%clk 0:02:31.6]}
15... Bb7 {[%clk 0:02:26]} 16. Nxe5 {[%clk 0:02:23.9]} 16... Re8 {[%clk
0:02:25.1]} 17. f4 {[%clk 0:02:13]} 17... Nf6 {[%clk 0:02:02.4]} 18. Qf2 {[%clk
0:01:41.6]} 18... Kg8 {[%clk 0:01:54.1]} 19. Ng6 {[%clk 0:01:28.2]} 19... Rh7
{[%clk 0:01:13.3]} 20. Rxe8+ {[%clk 0:01:20.1]} 20... Nxe8 {[%clk 0:01:14.2]}
21. Re1 {[%clk 0:01:20.3]} 21... Bd4 {[%clk 0:01:01.8]} 22. Rxe8+ {[%clk
0:01:09.6]} 22... Kf7 {[%clk 0:01:01.5]} 23. Re3 {[%clk 0:01:08.9]} 23... Qxg6
{[%clk 0:00:52.3]} 24. Nd1 {[%clk 0:01:06.9]} 24... Rg7 {[%clk 0:00:47.2]} 25.
c3 {[%clk 0:01:05.4]} 25... Bxe3 {[%clk 0:00:46.4]} 26. Nxe3 {[%clk 0:01:01.2]}
26... Bc8 {[%clk 0:00:45.7]} 27. c4 {[%clk 0:01:00]} 27... Qg3 {[%clk
0:00:34.9]} 28. Qe2 {[%clk 0:00:52.2]} 28... Rg6 {[%clk 0:00:17]} 29. Nf1 {[%clk
0:00:45.8]} 29... Qxh3 {[%clk 0:00:17.2]} 30. Bc3 {[%clk 0:00:43.8]} 30... Be6
{[%clk 0:00:17.3]} 31. b4 {[%clk 0:00:37.5]} 31... cxb4 {[%clk 0:00:17]} 32.
axb4 {[%clk 0:00:38.4]} 32... Qg4 {[%clk 0:00:16.5]} 33. Nh2 {[%clk 0:00:36.8]}
33... Qxe2 {[%clk 0:00:16.1]} 0-1

[Event "*** SCC Grand Prix: Titled Tuesday Blitz"]
[Site "Chess.com"]
[Date "2020.07.21"]
[Round "4"]
[White "Walter_White_Poland"]
[Black "viktorskliarov"]
[Result "0-1"]
[WhiteElo "2246"]
[BlackElo "2583"]
[TimeControl "180+1"]
[EndTime "10:37:55 PDT"]
[Termination "viktorskliarov won on time"]

1. e4 {[%clk 0:03:00.9]} 1... c5 {[%clk 0:02:59.7]} 2. Nf3 {[%clk 0:03:00.9]}
2... Nc6 {[%clk 0:02:59.1]} 3. d4 {[%clk 0:03:00.6]} 3... cxd4 {[%clk
0:02:59.1]} 4. Nxd4 {[%clk 0:03:01.5]} 4... Nf6 {[%clk 0:02:59.4]} 5. Nc3 {[%clk
0:03:01.2]} 5... e5 {[%clk 0:02:59.3]} 6. Ndb5 {[%clk 0:03:01.4]} 6... d6 {[%clk
0:02:59.8]} 7. Bg5 {[%clk 0:03:00.6]} 7... a6 {[%clk 0:02:59.9]} 8. Na3 {[%clk
0:03:00.7]} 8... b5 {[%clk 0:02:59.9]} 9. Bxf6 {[%clk 0:03:00.9]} 9... gxf6
{[%clk 0:02:59.5]} 10. Nd5 {[%clk 0:03:01.1]} 10... f5 {[%clk 0:03:00]} 11. c3
{[%clk 0:03:00.8]} 11... Bg7 {[%clk 0:02:59.5]} 12. exf5 {[%clk 0:03:00.7]}
12... Bxf5 {[%clk 0:02:59.3]} 13. Nc2 {[%clk 0:03:00.7]} 13... O-O {[%clk
0:02:59.3]} 14. Nce3 {[%clk 0:03:00.6]} 14... Be6 {[%clk 0:02:59.9]} 15. Bd3
{[%clk 0:02:59.8]} 15... f5 {[%clk 0:03:00.4]} 16. O-O {[%clk 0:02:59.5]} 16...
Kh8 {[%clk 0:02:58.9]} 17. Qh5 {[%clk 0:02:55.2]} 17... e4 {[%clk 0:02:55.4]}
18. Bc2 {[%clk 0:02:36.1]} 18... Ne7 {[%clk 0:02:46.5]} 19. Nxe7 {[%clk
0:02:10.6]} 19... Qxe7 {[%clk 0:02:44.5]} 20. f3 {[%clk 0:01:26.9]} 20... d5
{[%clk 0:01:38.3]} 21. fxe4 {[%clk 0:01:21.3]} 21... fxe4 {[%clk 0:01:38.1]} 22.
Kh1 {[%clk 0:00:35.9]} 22... Qc5 {[%clk 0:01:31.1]} 23. Qe2 {[%clk 0:00:15.1]}
23... b4 {[%clk 0:01:25.5]} 24. cxb4 {[%clk 0:00:07]} 24... Qxb4 {[%clk
0:01:25.3]} 25. Bb3 {[%clk 0:00:05.9]} 25... Rad8 {[%clk 0:01:02.7]} 26. Rxf8+
{[%clk 0:00:04.8]} 26... Qxf8 {[%clk 0:01:00.6]} 27. Rd1 {[%clk 0:00:03.9]}
27... Qc5 {[%clk 0:00:39.1]} 28. Nc2 {[%clk 0:00:01.5]} 28... Bg8 {[%clk
0:00:34.8]} 0-1

[Event "*** SCC Grand Prix: Titled Tuesday Blitz"]
[Site "Chess.com"]
[Date "2020.07.21"]
[Round "4"]
[White "Gusarov91"]
[Black "GOGIEFF"]
[Result "0-1"]
[WhiteElo "2634"]
[BlackElo "2898"]
[TimeControl "180+1"]
[EndTime "10:37:57 PDT"]
[Termination "GOGIEFF won by resignation"]

1. d4 {[%clk 0:03:00.9]} 1... Nf6 {[%clk 0:02:58.8]} 2. Nf3 {[%clk 0:03:01]}
2... g6 {[%clk 0:02:57]} 3. c4 {[%clk 0:03:00.1]} 3... Bg7 {[%clk 0:02:57.1]} 4.
g3 {[%clk 0:03:00.1]} 4... O-O {[%clk 0:02:56.2]} 5. Bg2 {[%clk 0:03:00.7]} 5...
Nc6 {[%clk 0:02:56.8]} 6. O-O {[%clk 0:03:00.4]} 6... a6 {[%clk 0:02:57.1]} 7.
b3 {[%clk 0:02:59.1]} 7... b5 {[%clk 0:02:56]} 8. Nbd2 {[%clk 0:02:55]} 8... Rb8
{[%clk 0:02:45.3]} 9. Rb1 {[%clk 0:02:52.5]} 9... d6 {[%clk 0:02:31.5]} 10. d5
{[%clk 0:02:51.3]} 10... Na5 {[%clk 0:02:23.1]} 11. Qc2 {[%clk 0:02:48.8]} 11...
c5 {[%clk 0:01:49.1]} 12. dxc6 {[%clk 0:02:46.5]} 12... Nxc6 {[%clk 0:01:47.7]}
13. cxb5 {[%clk 0:02:46.6]} 13... Nb4 {[%clk 0:01:47.9]} 14. Qd1 {[%clk
0:02:36.8]} 14... Nxa2 {[%clk 0:01:42.8]} 15. Bb2 {[%clk 0:01:51.7]} 15... axb5
{[%clk 0:01:41.3]} 16. Nd4 {[%clk 0:01:49.7]} 16... Bd7 {[%clk 0:01:41.5]} 17.
Nc6 {[%clk 0:01:46.5]} 17... Bxc6 {[%clk 0:01:41.2]} 18. Bxc6 {[%clk 0:01:47.4]}
18... Nb4 {[%clk 0:01:40.6]} 19. Bg2 {[%clk 0:01:47]} 19... d5 {[%clk
0:01:38.4]} 20. Bc3 {[%clk 0:01:41.8]} 20... Nc6 {[%clk 0:01:35.9]} 21. e3
{[%clk 0:01:41.3]} 21... e6 {[%clk 0:01:34.3]} 22. Qe2 {[%clk 0:01:34.9]} 22...
Qb6 {[%clk 0:01:33.3]} 23. Rfc1 {[%clk 0:01:33.3]} 23... Rfc8 {[%clk 0:01:33.1]}
24. h3 {[%clk 0:01:31.3]} 24... b4 {[%clk 0:01:29.2]} 25. Ba1 {[%clk 0:01:30]}
25... Ne8 {[%clk 0:01:29.8]} 26. Bxg7 {[%clk 0:01:28]} 26... Nxg7 {[%clk
0:01:30.7]} 27. e4 {[%clk 0:01:26.8]} 27... Nd4 {[%clk 0:01:27.5]} 28. Qd3
{[%clk 0:01:27]} 28... Rc3 {[%clk 0:01:25]} 29. Qf1 {[%clk 0:01:21.2]} 29...
Rbc8 {[%clk 0:01:21.8]} 30. Re1 {[%clk 0:01:17]} 30... Rxg3 {[%clk 0:01:16.9]}
31. exd5 {[%clk 0:00:39.7]} 31... exd5 {[%clk 0:01:15.4]} 32. fxg3 {[%clk
0:00:20.1]} 32... Nf3+ {[%clk 0:01:14.6]} 33. Kh1 {[%clk 0:00:20.3]} 33... Nxd2
{[%clk 0:01:15.5]} 34. Qd3 {[%clk 0:00:17]} 34... Nxb1 {[%clk 0:01:14.5]} 35.
Rxb1 {[%clk 0:00:16.7]} 35... Nf5 {[%clk 0:01:13.9]} 36. Qxd5 {[%clk 0:00:15.9]}
36... Nxg3+ {[%clk 0:01:12.8]} 37. Kh2 {[%clk 0:00:16.5]} 37... Qc7 {[%clk
0:01:11.6]} 38. Kg1 {[%clk 0:00:16.9]} 38... Ne2+ {[%clk 0:01:11.7]} 39. Kh1
{[%clk 0:00:16.6]} 39... Nf4 {[%clk 0:01:12.3]} 40. Qf3 {[%clk 0:00:15.9]} 40...
Nxg2 {[%clk 0:01:12.3]} 41. Qxg2 {[%clk 0:00:15]} 41... Qc2 {[%clk 0:01:11.4]}
42. Qf1 {[%clk 0:00:05.3]} 42... Qe4+ {[%clk 0:01:08.5]} 43. Kg1 {[%clk
0:00:05]} 43... Rc2 {[%clk 0:01:05.3]} 0-1